Cogmind - Beta 13 @@@ ROGUE MODE // 2024.06.11 @ 14:25:44 Player: SovietPaperclip Result: Destroyed by GZ-KBP(R) with Subdweller Machine Gun Performance ------------- Evolutions (0) 0 Regions Visited (2) 400 Robots Destroyed (14) 70 Value Destroyed (369) 369 Prototype IDs (10) 200 Alien Tech Used (0) 0 Bonus (0) 0 TOTAL SCORE: 1039 Bonus ------- None Cogmind --------- Core Integrity 0/250 Matter 264/300 Energy 91/265 System Corruption 0% Temperature Cool (7) Movement Hovering (360) Ox5 Location -10/Subcaves Parts ------- > --- POWER (1) -------- Improved Ion Engine > --- PROPULSION (2) --- Improved Hover Unit > --- UTILITY (2) ------ Disposable Heat Sink Large Storage Unit > --- WEAPON (2) ------- Particle Cannon Particle Cannon > --- INVENTORY (15) --- Subdweller Monowheel High-capacity Matter Pod (0) Gun Armor Makeshift Thermal Plating Particle Cannon Grenade Launcher Peak State ------------ > --- POWER ------------ Improved Ion Engine > --- PROPULSION ------- Improved Hover Unit Improved Hover Unit > --- UTILITY ---------- Large Storage Unit Makeshift Thermal Plating > --- WEAPON ----------- Particle Cannon Grenade Launcher > --- INVENTORY -------- Improved Ion Engine Subdweller Monowheel Disposable Heat Sink High-capacity Matter Pod Gun Armor Particle Cannon Particle Cannon [Rating: 16] Favorites ----------- Power Improved Ion Engine Engine Improved Ion Engine Propulsion Improved Hover Unit Treads Light Treads Hover Unit Improved Hover Unit Utility Large Storage Unit Device Subdweller Optics Storage Large Storage Unit Protection Light Armor Plating Weapon Particle Cannon Energy Cannon Particle Cannon Ballistic Gun Assault Rifle Launcher Grenade Launcher Build | -11 -10 -10 ------- Run | Yrd Mat Sub Slots Evolved . | . . . Power . | . . . Propulsion . | . . . Utility . | . . . Weapon . | . . . Parts Attached 34 | 6 12 16 Power 3 | 1 1 1 Engine 3 | 1 1 1 Core . | . . . Reactor . | . . . Propulsion 7 | 2 4 1 Treads 2 | 2 . . Leg . | . . . Wheel . | . . . Hover 5 | . 4 1 Flight . | . . . Utility 7 | 1 2 4 Device 3 | . . 3 Storage 2 | 1 1 . Processor . | . . . Hackware . | . . . Protection 2 | . 1 1 Artifact . | . . . Weapon 17 | 2 5 10 Energy Gun . | . . . Energy Cannon 6 | . 1 5 Ballistic Gun 9 | 2 3 4 Ballistic Cannon . | . . . Launcher 2 | . 1 1 Special Weapon . | . . . Impact Weapon . | . . . Slashing Weapon . | . . . Piercing Weapon . | . . . Special Melee Weapon . | . . . Unidentified Prototypes . | . . . Parts Lost 7 | . 1 6 Power 1 | . . 1 Propulsion 3 | . 1 2 Utility 1 | . . 1 Weapon 2 | . . 2 Highest Loss Streak 2 | . 1 2 To Critical Strikes . | . . . Average Slot Usage (%) 97 | . 96 97 Engine 14 | . 14 14 Treads 1 | . 5 . Hover 26 | . 21 27 Device 7 | . . 9 Storage 14 | . 14 14 Protection 4 | . 12 2 Energy Cannon 14 | . . 17 Ballistic Gun 9 | . 26 4 Launcher 4 | . . 5 Naked Turns . | . . . Heaviest Build 38 | 14 36 38 Greatest Support 40 | 40 40 14 Greatest Overweight (x) 2 | . 2 2 Average Overweight (x) 1 | . . 2 Largest Inventory Capacity 15 | 8 15 15 Average Capacity 13 | 6 9 15 Most Carried 8 | 3 8 7 Average Carried 5 | 1 6 5 Final Capacity 15 | 8 15 15 Final Carried 7 | 3 7 6 Class Distribution -------------------- 100% | Mutant Dominant Class ---------------- Mutant | -10/Materials Mutant | -10/Subcaves Resources | -11 -10 -10 ----------- Run | Yrd Mat Sub Matter Collected 687 | 260 161 266 Remotely . | . . . Salvage Created 432 | . 159 273 Parts 23 | . 7 16 Haulers Intercepted . | . . . Recyclers Shooed . | . . . Parts Field Recycled . | . . . Retrieved Matter . | . . . Parts Self-Destructed 9 | . . 9 Prevented . | . . . Kills | -11 -10 -10 ------- Run | Yrd Mat Sub Combat Hostiles Destroyed 14 | . 4 10 Guns 7 | . 4 3 Cannons 4 | . . 4 AOE 3 | . . 3 Classes Destroyed 3 | . 1 2 Swarmer 6 | . . 6 Grunt 4 | . 4 . Subdweller 4 | . . 4 Best Kill Streak 3 | . 2 3 Combat Bots Only 3 | . 2 3 Max Kills in Single Turn 3 | . 1 3 Gunslinging . | . . . Exploded 3 | . . 3 Melee . | . . . Uniques/NPCs Destroyed . | . . . Combat | -11 -10 -10 -------- Run | Yrd Mat Sub Hostile Shots Fired 89 | . 27 62 Missed 28 | . 6 22 Damage Taken 967 | . 328 639 Core 253 | . 125 128 Absorbed by Shields . | . . . Core Remaining (%) 100 | 100 . . Volleys Fired 66 | . 24 42 Largest 2 | . 2 2 Hottest 136 | . 68 136 Shots Fired 107 | . 47 60 Gun 66 | . 45 21 Cannon 39 | . 1 38 Launcher 2 | . 1 1 Special . | . . . Kinetic 66 | . 45 21 Thermal 39 | . 1 38 Explosive 2 | . 1 1 Electromagnetic . | . . . Robot Hit Streak 17 | . 5 17 Robot Miss Streak 3 | . 2 3 Penetration Max . | . . . Secondary Targets 3 | . 1 2 Max Gunslinging Chain 1 | . 1 1 Shots Hit Robots 61 | . 30 31 Core Hits 24 | . 9 15 Critical Kills . | . . . Critical Parts Destroyed . | . . . Critical Strikes . | . . . Melee Attacks . | . . . Impact . | . . . Slashing . | . . . Piercing . | . . . Sneak Attacks . | . . . Combat Hostiles . | . . . Follow-up Attacks . | . . . Damage Inflicted 1033 | . 399 634 Guns 491 | . 381 110 Cannons 408 | . . 408 Explosions 134 | . 18 116 Melee . | . . . Ramming . | . . . Kinetic 491 | . 381 110 Thermal 408 | . . 408 Explosive 134 | . 18 116 Electromagnetic . | . . . Impact . | . . . Slashing . | . . . Piercing . | . . . Highest Corruption . | . . . Average Corruption . | . . . Corruption Purged . | . . . Corruption Blocked . | . . . Overload Shots . | . . . Overflow Damage . | . . . Projectiles . | . . . Explosions . | . . . Melee . | . . . Knockbacks . | . . . Impact . | . . . Kinetic . | . . . Secondary . | . . . Self-Inflicted Damage 26 | . 26 . Shots 1 | . 1 . Rammed . | . . . Targets Rammed . | . . . Kicked . | . . . Crushed . | . . . Highest Temperature 414 | . 57 414 Average Temperature 67 | . 20 185 Received Heat Transfer 503 | . 165 338 Effects 1 | . . 1 Shutdowns 1 | . . 1 Siege Activations . | . . . Robots Corrupted . | . . . Combat Hostiles . | . . . Parts Fried . | . . . Impact Corruptions . | . . . Robots Melted . | . . . Combat Hostiles . | . . . Parts Melted 5 | . . 5 Heat Transferred 740 | . . 740 Parts Sabotaged . | . . . Parts Stolen . | . . . Parts Stripped . | . . . Power Chain Reactions . | . . . Alert | -11 -10 -10 ------- Run | Yrd Mat Sub Peak Influence 121 | . 121 . Initial . | . . . Average 31 | . 35 . Maximum Alert Level . | . . . Low Security (%) 100 | 100 100 . Level 1 . | . . . Level 2 . | . . . Level 3 . | . . . Level 4 . | . . . Level 5 . | . . . High Security . | . . . Max Security . | . . . Squads Dispatched 1 | . 1 . Investigation . | . . . Extermination . | . . . Reinforcement 1 | . 1 . Assault . | . . . Garrison . | . . . Intercept . | . . . Searches Triggered . | . . . Construction Impeded . | . . . Haulers Reinforced . | . . . Active Scanning Responses . | . . . Cargo Convoy Interrupts . | . . . Stealth | -11 -10 -10 --------- Run | Yrd Mat Sub Distress Signals 1 | . 1 . Communications Jammed . | . . . Distress Signals . | . . . Times Spotted 20 | . 8 12 Peak Tracking Total 6 | . 2 6 Tactical Retreats 2 | . . 2 Traps | -11 -10 -10 ------- Run | Yrd Mat Sub Traps Triggered 2 | . 2 . Indirectly . | . . . Trap Hack Attempts . | . . . Triggered . | . . . Disarmed . | . . . Reprogrammed . | . . . Reused . | . . . Traps Extracted . | . . . Installed . | . . . Triggered . | . . . Machines | -11 -10 -10 ---------- Run | Yrd Mat Sub Machines Disabled 1 | . . 1 Max in Single Turn 1 | . . 1 Machines Repaired . | . . . Machines Dismantled . | . . . Machines Sabotaged . | . . . Overloaded Fab Kills . | . . . Hacking | -11 -10 -10 --------- Run | Yrd Mat Sub Machines Accessed 3 | . 2 1 Terminals 2 | . 2 . Fabricators . | . . . Repair Stations . | . . . Recycling Units . | . . . Scanalyzers . | . . . Garrison Access . | . . . Total Hacks 4 | . 3 1 Successful 3 | . 2 1 Failed . | . . . Catastrophic . | . . . Database Lockouts 1 | . 1 . Manual 2 | . 2 . Terminals 3 | . 3 . Fabricators . | . . . Repair Stations . | . . . Recycling Units . | . . . Scanalyzers . | . . . Garrison Access . | . . . Terminal Hacks 3 | . 2 1 Record 1 | . 1 . Part Schematic 1 | . 1 . Derelict Proto ID Bank 1 | . . 1 Fabricator Hacks . | . . . Repair Station Hacks . | . . . Recycling Unit Hacks . | . . . Scanalyzer . | . . . Garrison Access Hacks . | . . . Unauthorized Hacks . | . . . Terminals . | . . . Fabricators . | . . . Repair Stations . | . . . Recycling Units . | . . . Scanalyzers . | . . . Garrison Access . | . . . Data Cores Recovered . | . . . Used . | . . . Hacking Detections 1 | . 1 . Full Trace Events . | . . . Feedback Events . | . . . Feedback Blocked . | . . . Robot Schematics Acquired . | . . . Robots Built . | . . . Authchips . | . . . Time . | . . . Total Robot Build Rating . | . . . Part Schematics Acquired 1 | . 1 . Parts Built . | . . . Authchips . | . . . Time . | . . . Total Part Build Rating . | . . . Parts Repaired . | . . . Time . | . . . Parts Recycled . | . . . Recycled Matter . | . . . Retrieved Matter . | . . . Retrieved Components . | . . . Parts Scanalyzed . | . . . Part Schematics Acquired . | . . . Parts Damaged . | . . . Bothacking | -11 -10 -10 ------------ Run | Yrd Mat Sub Used RIF Installer . | . . . Robots Hacked . | . . . Non-combat . | . . . Combat . | . . . Robot Hacks Applied . | . . . Relay Couplers Released . | . . . Fabnet Peak Effective % . | . . . Robots Rewired . | . . . Allies Hacked . | . . . Hacks Repelled . | . . . Allies | -11 -10 -10 -------- Run | Yrd Mat Sub Total Allies . | . . . Largest Group . | . . . Highest-Rated Group . | . . . Highest-Rated Ally . | . . . Total Orders . | . . . Ally Attacks . | . . . Total Damage . | . . . Kills . | . . . Allies Corrupted . | . . . Allies Melted . | . . . Intel | -11 -10 -10 ------- Run | Yrd Mat Sub Robot Analysis Total . | . . . Derelict Logs Recovered 1 | . . 1 Drone Launches . | . . . Drone Recoveries . | . . . Exploration | -11 -10 -10 ------------- Run | Yrd Mat Sub Turns Passed 2727 | 66 535 2126 Spaces Moved 1471 | 36 305 1130 Core 2 | 2 . . Treads 96 | 34 62 . Legs . | . . . Wheels . | . . . Hover 1373 | . 243 1130 Flight . | . . . Fastest Speed 50 | 50 116 176 Average Speed 166 | 153 134 176 Slowest Speed 180 | 160 180 176 Overloaded Moves . | . . . Propulsion Burnouts . | . . . Robots Hopped . | . . . Cave-ins Triggered . | . . . Exploration Rate (%) 39 | 5 51 62 Regions Visited 2 Branch Regions 1 Pre-discovered Areas 1 | . . 1 Known Exits Taken . | . . . Unknown Exits Taken 2 | 1 1 . Scrap Searched 3 | . . 3 Spaces Dug 7 | . 7 . Terrain Destroyed 12 | . 7 5 Melee . | . . . Projectile . | . . . AOE 12 | . 7 5 Terrain Rammed . | . . . Walls Destroyed . | . . . Machines Disabled . | . . . Actions | -11 -10 -10 --------- Run | Yrd Mat Sub Total 1630 | 44 383 1203 Wait 32 | . 22 10 Move 1469 | 35 304 1130 Hop . | . . . Pick Up 19 | 3 12 4 Fast Attach 12 | 6 5 1 Attach 7 | . 3 4 Detach . | . . . Swap 15 | . 4 11 Drop 10 | . 9 1 Fire 66 | . 24 42 Melee . | . . . Ram . | . . . Kick . | . . . Crush . | . . . Escape Stasis . | . . . Rewire . | . . . Trap . | . . . Miscellaneous . | . . . Route ------- -11/Scrapyard -10/Materials (discovered 3 exits: [*Mat] / [*Min] / *Sub) -10/Subcaves (discovered 2 exits: [*Mat x2]) History --------- Turn | Location | Event 9 | -11/Scrapyard | Discovered new exit (range 15) 67 | -11/Scrapyard | Entered Materials 104 | -10/Materials | Central database locked down 307 | -10/Materials | Build established: Mutant 387 | -10/Materials | Discovered new exit (range 4) 408 | -10/Materials | Discovered new exit (range 11) 463 | -10/Materials | Discovered new exit (range 16) 602 | -10/Materials | Entered Subcaves 755 | -10/Subcaves | Learned location of Zion (-7) 786 | -10/Subcaves | Core integrity fell below 50% 1197 | -10/Subcaves | Discovered new exit (range 13) 1301 | -10/Subcaves | Discovered new exit (range 13) 1675 | -10/Subcaves | Shifting Twisted Machinery released Sub. Monowheel 1880 | -10/Subcaves | Shifting Twisted Machinery released Sub. Optics 2053 | -10/Subcaves | Visited 4L-MR0's lab 2074 | -10/Subcaves | Found Gun Armor 2719 | -10/Subcaves | Core integrity fell below 20% 2728 | -10/Subcaves | Destroyed by GZ-KBP(R) with Subdweller Machine Gun Last Messages --------------- Rainbow Chip VL-GR5's Exoskeleton "Deathgrip" Powered Cannon 02068_ Testing Chamber breached. 02073_ 4L-MR0 mumbles to no one in particular: "Damn Subs sneaking around stealing my stuff." 02074_ Acquired Gun Armor. 02079_ 4L-MR0 mumbles: "I'm surprised some of them are even willing to come in here given their fear of my usual visitors." 02081_ 4L-MR0 mumbles: "Who knows where that last prototype ended up, probably tossed aside somewhere as if it were useless junk..." 02102_ Subatomizers dissect the Sub. Optics. 02720_ Imp. Ion Engine destroyed. 02722_ Sub. Power Source melted. 02722_ 5F-OB9(R) destroyed. 02726_ Imp. Hover Unit destroyed. 02727_ Sub. Power Source melted. 02727_ WL-WNR(R) destroyed. Map ----- +----------------------------------------------------+ | ???????????????????????????????????### ### | | ??????????????????????????????????## ###? | | ???????????????????????????????#### #### | | ???????????????????????????????# | | ???????????????????????????????### | | ?????????????????????????????????## | | ??????????????????????????????????# | | ?????????????????????????????????## ### | | ?????????????????????????????????# ##??? | | ????????????????????????? ?????# ## #??? | | ????????????????????????? ! ?????# #?# ##?? | | ?????????????????????????!%!????# ??## #?? | | ????????????????????????# ! ????# ??# #?? | | ???????????????????????? ????# ??## ##?? | | ???????????????????????? ??? ????# #??? | | ???????????????#???????? ?? #????# #??? | | ???????????????? ??????? ? ?????## #??? | | ????????????????? ?????# ??????# #??? | | ?????????????????? ????# ??????# #??? | | ??????????????????? ??## ??????## #??? | | ???????????????????? ??# ?# #??????# ##??? | | ???????????????????## ## #?# #????????# ##??? | | ???????????????????# #< ### ##???????## ##?? | | ???????????????????# #? ##???????# #?? | | ???????????????????#[%= #??# #?###???# # #? | | ???????????????????# #< @#??# ## #???# ###? | | ?????????????????????### #?## #???# #??? | | ???????????????????????# ### #???# #??? | | ???????????????????????## ## #?????# #??? | | ????????????????????????# ##????# #??? | | ????????????????????????## ##??## #??? | | ?????????????????????????## ##?# ####? | | ???????????????????????##### ## ### ## | | ???????????????????????# ### ## # | | ???????????????????????# ## #### ## ## | | ???????????????????????## ######??##### ## | | ????????????????????????## #??????????# #### | | ?????????????????????????## #??????????## ### | | ??????????????????????????# #????????### ## | | ?????????????????????????? #???????## | | ?????????????????????????# #??????## | | ?????????????????????????# #??????# # | | ?????????????????????????### #??????# < ## | | ???????????????????????????#####??????### ## | | ????????????????????????????????????????##### # | | ????????????????????????????????????????????## | | ????????????????????????????????????????????## | | ???????????????????????????????????????????## | | ??????????????????????????????????????????## | | ??????????????????????????????????????????# | +----------------------------------------------------+ Best States ------------- Heat Dissipation 25 Coolant Potential 50 Energy Generation 12 Energy Capacity 265 Matter Stores 300 Matter Capacity 300 Sight Range 21 Terrain Scan Density 10 Armor Coverage 150 Resistance: TH 10 Evasion (%) 45 Recoil Reduction 2 Item Schematics ----------------- Cargo Storage Unit | -10/Materials | Hacked Robot Schematics ------------------ None Fabricated ------------ Nothing Alien Tech Used ----------------- None Achievements -------------- None Challenges ------------ None Game ------ Seed NovaPointAirjet Manual? 0 Play Time 00:11:48 Cumulative 119.8 hours Start 2024.06.11 @ 14:14:31 End 2024.06.11 @ 14:25:44 Sessions 1 Manual Loads 0 Difficulty Rogue Special Mode None Game No. 163 Rogue 163 Adventurer 0 Explorer 0 Win Type - Total 1 Types 1/0/0/0/0/0/0/0/0 Lore% 49 Gallery% 53 Achievement% 50 Wizard Run 0 Options --------- Layout 1 ASCII 0 Keyboard 0 Movement Mouse Keybinds 0 Fullscreen 1 Font 32/SmallcapsGlow Map View 50x35 Zoom Use 0% Tactical HUD 1 Map Filters NONE Filters NONE Steam 1 RUN: 709d0289-e1c1-49fe-9070-ab2b1844ee4f